[Event "34th Pula Open 2022"]
[Site "Pula"]
[Date "2022.06.20"]
[Round "4.3"]
[White "Babic, Drasko"]
[Black "Bochnicka, Vladimir"]
[Result "1/2-1/2"]
[ECO "A37"]
[WhiteElo "2205"]
[BlackElo "2267"]
[Annotator "TA"]
[PlyCount "110"]
[EventDate "2022.06.18"]
[EventType "swiss"]
[EventCountry "CRO"]
[SourceTitle "playchess.com"]
[Source "ChessBase"]
[SourceQuality "1"]
[TimeControl "5400+30"]

{[%evp 24,110,-12,-45,0,0,2,0,0,-25,6,9,39,-23,0,0,21,19,8,0,14,0,0,-12,0,0,6,7,76,0,0,0,0,0,0,0,0,0,34,33,26,22,14,4,5,0,0,0,5,0,0,0,115,0,28,10,80,80,132,132,306,0,0,-267,-51,-65,-65,-80,0,0,0,0,0,0,0,0,0,0,0,0,0,0,0,0,0,0,0,0,0]} 1. Nf3 {[%emt 0:00:51]} c5 {[%emt 0:00:06]} 2. g3 {[%emt 0:00:16]} g6 {[%emt 0:00:11]} 3. Bg2 {[%emt 0:00:19]} Bg7 {[%emt 0:00:08]} 4. c4 {[%emt 0:00:34]} Nc6 {[%emt 0:00:10]} 5. Nc3 {[%emt 0:00:09]} d6 {[%emt 0:00:28]} 6. O-O {[%emt 0:00:23]} e5 {[%emt 0:00:37]} 7. Rb1 {[%emt 0:00:44]} Nge7 {[%emt 0:00:50]} 8. a3 {[%emt 0:00:12]} a5 {[%emt 0:00:35]} 9. Ne1 {[%emt 0:00:18]} Be6 {[%emt 0:02:10]} 10. d3 {[%emt 0:00:12]} O-O {[%emt 0:00:50]} 11. Nc2 {[%emt 0:00:09]} d5 {[%emt 0:07:47]} 12. cxd5 {[%emt 0:01:12]} Nxd5 {[%emt 0:00:10]} 13. Ne4 {[%emt 0:03:14]} Qe7 {[%emt 0:04:21] A37: Symmetrical English vs ...g6: 4 Bg2 Bg7 5 Nf3.} (13... b6 $15) 14. Ng5 $11 {[%emt 0:00:47]} Rfd8 {[%emt 0:05:04]} 15. Nxe6 {[%emt 0:00:17]} Qxe6 {[%emt 0:00:23]} 16. Bg5 {[%emt 0:04:13]} f6 {[%emt 0:05:17]} 17. Bd2 {[%emt 0:00:29] [#]} b5 $146 {[%emt 0:04:54][%cal Bb7b5,Bb5b4][%mdl 32]} ({Predecessor:} 17... Bf8 18. b3 Rac8 19. Qe1 b6 20. Ne3 Nxe3 21. fxe3 Bh6 22. Qc1 Rd6 23. Qc4 Rcd8 {1-0 (63) Armbruster,A (2318)-Topp,M (2096) Germany 2014}) 18. e3 {[%emt 0:06:07]} (18. a4 $14) 18... Rac8 {[%emt 0:04:02]} 19. Qe2 {[%emt 0:02:07]} Kh8 {[%emt 0:04:33]} 20. Rfd1 {[%emt 0:04:51][%cal Od3d4]} b4 {[%emt 0:09:45]} 21. Rdc1 {[%emt 0:08:22]} f5 {[%emt 0:01:36]} 22. Ne1 {[%emt 0:03:48]} Qd6 {[%emt 0:03:34]} 23. Rd1 {[%emt 0:04:27]} Nb6 {[%emt 0:02:35]} 24. Rbc1 {[%emt 0:00:45]} Na7 {[%emt 0:05:23][%cal Bc6a7,Ba7b5,Bb5c3][%mdl 32]} ({But not} 24... e4 25. dxe4 fxe4 26. Bxb4 $1 $16 {[%mdl 512]}) 25. axb4 {[%emt 0:01:40]} cxb4 {[%emt 0:02:39]} (25... axb4 $11 26. Ra1 Nc6) 26. b3 {[%emt 0:03:35]} (26. d4 $16) 26... Nb5 {[%emt 0:04:50]} 27. d4 {[%emt 0:03:08]} Nc3 {[%emt 0:01:27]} 28. Bxc3 {[%emt 0:00:07]} bxc3 {[%emt 0:00:06]} 29. dxe5 {[%emt 0:00:51]} Qxe5 {[%emt 0:01:19]} 30. Qa6 {[%emt 0:04:26]} Rxd1 {[%emt 0:06:02]} 31. Rxd1 {[%emt 0:00:13]} Qc5 {[%emt 0:00:24]} 32. Nc2 {[%emt 0:00:40]} h5 {[%emt 0:05:00]} 33. h4 {[%emt 0:02:16]} Re8 {[%emt 0:07:21]} 34. Bf3 {[%emt 0:00:19]} Kh7 $1 {[%emt 0:01:14]} 35. Kg2 {[%emt 0:00:39]} Re7 {[%emt 0:07:42]} 36. Qe2 {[%emt 0:10:31]} a4 {[%emt 0:01:45]} 37. bxa4 {[%emt 0:00:02]} Ra7 {[%emt 0:01:31] [#] Against Qa6} (37... Nxa4 $11 38. Rd5 Qb6) 38. Rd8 {[%emt 0:07:02]} (38. Bxh5 $1 $16 {[%mdl 512]} gxh5 39. Qxh5+ Bh6 40. e4) 38... Qc7 {[%emt 0:00:55]} 39. Re8 {[%emt 0:15:37] Strongly threatening Re6.} Rxa4 {[%emt 0:00:54]} (39... Nxa4 $11 {remains equal.} 40. Bd5 Nc5) 40. Qb5 $16 {[%emt 0:00:55] Hoping for Re6.} Ra2 {[%emt 0:00:43]} (40... Qd7 $142 41. Qxd7 Nxd7) 41. Qb3 {[%emt 0:04:38]} Qc4 {[%emt 0:00:05] Against Qg8+} (41... Rxc2 $16 {might work better.} 42. Qxc2 Nc4) 42. Qxc4 $2 {[%emt 0:05:20] The board is on fire.} ({White must play} 42. Qxb6 $18 Rb2 43. Qa7 $1 (43. Na3 $2 Qa2 $19) 43... Rxc2 44. Re7) 42... Nxc4 $11 {[%emt 0:00:04]} 43. Rc8 $2 {[%emt 0:00:03][%mdl 8192] [#]} (43. Bd5 $11) 43... Nd6 $2 {[%emt 0:01:14]} ({Not} 43... Rxc2 44. Rxc4 Kh6 45. Rc6 $11) (43... Nb6 $1 $19 {[%cal Rb6c8]} 44. Rc6 Rxc2 45. Rxb6 Rd2) 44. Rc6 $15 {[%emt 0:00:17]} Rxc2 {[%emt 0:00:56]} 45. Rxd6 {[%emt 0:00:07][%mdl 4096] Endgame KRB-KRB} Ra2 {[%emt 0:00:35]} (45... Rb2 $17 {aiming for ...Bf8.} 46. Rc6 c2) 46. Rc6 $11 {[%emt 0:01:25] The position is equal.} Rd2 {[%emt 0:00:25] And now ...c2 would win.} 47. Kf1 $1 {[%emt 0:01:24]} Rb2 {[%emt 0:00:05]} 48. Bd1 {[%emt 0:00:51] Inhibits c2.} Rb1 {[%emt 0:00:20]} 49. Ke2 {[%emt 0:00:02]} Rb2+ {[%emt 0:00:04]} 50. Ke1 {[%emt 0:00:08]} Bf8 {[%emt 0:00:32]} 51. Rc7+ {[%emt 0:01:34]} Kh6 {[%emt 0:00:09]} 52. Kf1 {[%emt 0:01:21]} Bb4 {[%emt 0:00:31]} 53. Ba4 {[%emt 0:00:21]} Ba5 {[%emt 0:01:15]} 54. Rc5 {[%emt 0:00:26]} Bb4 {[%emt 0:00:19]} 55. Rc7 {[%emt 0:00:04]} Ba5 {[%emt 0:00:27] Weighted Error Value: White=0.29 (precise) /Black=0.33} 1/2-1/2

[Event "34th Pula Open 2022"]
[Site "Pula"]
[Date "2022.06.20"]
[Round "4.5"]
[White "Nikcevic, Nebojsa"]
[Black "Rohacek, Miroslav"]
[Result "1-0"]
[ECO "A28"]
[WhiteElo "2387"]
[BlackElo "2188"]
[Annotator "TA"]
[PlyCount "83"]
[EventDate "2022.06.18"]
[EventType "swiss"]
[EventCountry "CRO"]
[SourceTitle "playchess.com"]
[Source "ChessBase"]
[SourceQuality "1"]
[TimeControl "5400+30"]

{[%evp 11,82,0,3,9,28,8,11,8,18,7,7,0,5,0,10,-1,-2,0,6,7,6,0,6,6,0,0,6,6,31,14,53,54,56,47,46,56,91,91,91,97,111,118,201,164,322,322,312,294,734,677,599,391,676,625,698,698,651,475,462,216,639,355,310,216,1299,1322,1165,1133,29983,29983,29983,29984,29999]} 1. c4 {[%emt 0:02:27]} e5 {[%emt 0:00:19]} 2. Nc3 {[%emt 0:00:11]} Nf6 {[%emt 0:00:25]} 3. Nf3 {[%emt 0:00:09]} Nc6 {[%emt 0:00:30]} 4. e3 {[%emt 0:00:10]} Bb4 {[%emt 0:02:23]} 5. Qc2 {[%emt 0:00:08]} Bxc3 {[%emt 0:01:04]} 6. Qxc3 {[%emt 0:01:37]} Qe7 {[%emt 0:01:30]} 7. d4 $1 {[%emt 0:04:25][%mdl 4] is recently more successful than 7.a3. A28: English Opening: Four Knights Variation.} e4 {[%emt 0:01:36]} 8. Nd2 {[%emt 0:06:35]} d5 {[%emt 0:02:12]} 9. a3 {[%emt 0:03:25] The position is equal.} a5 {[%emt 0:05:51] [#] Prevents b4.} 10. cxd5 $146 {[%emt 0:10:01]} ({Predecessor:} 10. b3 O-O 11. h3 h5 12. Be2 Rd8 13. Bb2 Be6 14. Qc2 Qd7 15. Bc3 Ne7 16. b4 axb4 17. Bxb4 {1-0 (66) Martirosyan,H (2633)-Svane,R (2637) Chess.com INT 2022}) 10... Nxd5 {[%emt 0:00:14]} 11. Qc2 {[%emt 0:00:47]} f5 {[%emt 0:04:38]} 12. Bb5 {[%emt 0:09:08]} Bd7 {[%emt 0:02:30][%cal Oc6e5]} 13. Nb3 {[%emt 0:03:01]} O-O {[%emt 0:02:41][%cal Oc6b4]} 14. Bc4 {[%emt 0:14:48]} Qd6 {[%emt 0:07:49]} 15. Nc5 {[%emt 0:01:21]} Bc8 {[%emt 0:00:46]} 16. O-O {[%emt 0:06:07]} b6 {[%emt 0:08:20]} 17. Na4 {[%emt 0:03:24]} Be6 {[%emt 0:04:37]} 18. Bd2 {[%emt 0:00:07]} Nce7 {[%emt 0:08:00]} 19. Rfc1 {[%emt 0:04:34]} Rf6 {[%emt 0:06:14]} 20. g3 {[%emt 0:01:51]} (20. b4 {is more complex.} axb4 21. axb4 Rh6 22. g3) 20... Raf8 {[%emt 0:04:12]} 21. b4 $1 {[%emt 0:01:01]} axb4 {[%emt 0:00:54]} 22. Bxb4 {[%emt 0:00:07]} Nxb4 {[%emt 0:04:20]} 23. axb4 {[%emt 0:00:06]} Qxb4 {[%emt 0:03:44] White leaves nothing to chance now.} 24. Bxe6+ {[%emt 0:00:30]} Rxe6 {[%emt 0:00:30]} 25. Rab1 {[%emt 0:07:16]} Qa5 {[%emt 0:03:24][%cal Of5f4]} 26. Qb3 {[%emt 0:00:41]} Rff6 {[%emt 0:05:12]} (26... Nd5 $2 27. Nc5 $1 {[%mdl 512]} bxc5 28. Qxd5 $18) (26... Qd5 $16) 27. Rxc7 {[%emt 0:00:07]} Nd5 {[%emt 0:03:35]} (27... Qd5 28. Qb5 Qxb5 29. Rxb5 Kf8) 28. Rc8+ $18 {[%emt 0:02:57]} (28. Rd7 Rd6 29. Rc7 h5 $16) 28... Kf7 {[%emt 0:02:06]} (28... Rf8 $2 29. Rxf8+ Kxf8 {[#]} 30. Nc5 $1 $18 {[%mdl 512]}) 29. Nc5 {[%emt 0:00:22][%cal Ba4c5,Bc5e6,Be6c7,Bc7d5,Bd5f4][%mdl 32]} ({Stronger than} 29. Qa3 b5 30. Rf8+ (30. Qc5 Ne7 $11) 30... Kg6 31. Rxf6+ Rxf6 $14) 29... Ne7 {[%emt 0:07:19]} (29... bxc5 30. Qxd5 Kg6 31. dxc5 (31. Rxc5 Qa6 $18) 31... Ra6) 30. Nxe6 {[%emt 0:04:26] Intending Nf4+ and mate.} Nxc8 {[%emt 0:00:08]} 31. Nc7+ {[%emt 0:03:20]} Kg6 $2 {[%emt 0:00:41]} (31... Kf8 32. Ne6+ Kf7) 32. Nd5 {[%emt 0:03:31]} Rf8 {[%emt 0:02:48]} 33. Nf4+ {[%emt 0:04:02]} Kh6 {[%emt 0:00:09]} 34. Qe6+ {[%emt 0:00:17]} g6 {[%emt 0:00:06]} 35. h4 {[%emt 0:00:30]} (35. h3 $142 {Rc1 is the strong threat.} Qa7 36. Qe5) 35... Qa4 $2 {[%emt 0:00:30]} (35... Qa3 36. h5 Qe7 37. Rxb6 (37. hxg6 Qxe6 38. Nxe6 Rg8 $18) 37... Qxe6 38. Rxe6 Kg7 39. hxg6 hxg6 40. Rxg6+ Kf7) 36. h5 {[%emt 0:00:30]} (36. g4 fxg4 37. Qxg4 Rf5 $18) 36... Qe8 {[%emt 0:00:30]} 37. hxg6 {[%emt 0:00:30] Threatens to win with Kg2.} hxg6 $2 {[%emt 0:00:30]} (37... Qxe6 38. Nxe6 Rg8) 38. Kg2 {[%emt 0:00:30]} Kg7 {[%emt 0:00:30]} 39. Rc1 {[%emt 0:00:30][%cal Oc1c8] Strongly threatening Rxc8!} ({Weaker is} 39. Rh1 Rh8 40. g4 fxg4 $16) 39... Rg8 {[%emt 0:00:30]} 40. Rc7+ {[%emt 0:00:30] White mates.} Kh6 {[%emt 0:00:30]} 41. Qf6 {[%emt 0:00:30][%cal Rf6h4]} Qf8 {[%emt 0:00:30]} 42. Qh4# {[%emt 0:00:30] Weighted Error Value: White=0.36/Black=0.55} 1-0

[Event "34th Pula Open 2022"]
[Site "Pula"]
[Date "2022.06.20"]
[Round "4.6"]
[White "Maki-Uuro, Miikka"]
[Black "Kolesar, Milan"]
[Result "1-0"]
[ECO "D15"]
[WhiteElo "2332"]
[BlackElo "2169"]
[Annotator "TA"]
[PlyCount "71"]
[EventDate "2022.06.18"]
[EventType "swiss"]
[EventCountry "CRO"]
[SourceTitle "playchess.com"]
[Source "ChessBase"]
[SourceQuality "1"]
[TimeControl "5400+30"]

{[%evp 9,71,1,22,8,64,65,73,67,68,63,75,59,48,20,39,30,44,23,25,20,81,70,72,35,79,90,80,46,93,85,84,91,111,49,41,41,39,46,206,207,299,298,290,208,437,460,438,463,545,536,560,562,547,549,1016,1015,930,359,945,923,29994,1359,29996,29997]} 1. d4 {[%emt 0:00:04]} d5 {[%emt 0:00:05]} 2. c4 {[%emt 0:00:09]} c6 {[%emt 0:00:05]} 3. Nf3 {[%emt 0:00:15]} Nf6 {[%emt 0:00:07]} 4. Nc3 {[%emt 0:00:15]} dxc4 {[%emt 0:00:10]} 5. Ne5 {[%emt 0:00:15]} Be6 {[%emt 0:02:06]} 6. e4 {[%emt 0:00:56] D15: Slav Defence: 4 Nc3 a6 and gambit lines after 4 Nc3 dxc4.} Nbd7 {[%emt 0:06:10]} (6... b5 $1 $11) 7. Nxc4 $14 {[%emt 0:14:12] White is more active.} ({Much worse is} 7. Bxc4 Bxc4 8. Nxc4 b5 $11) 7... Nb6 {[%emt 0:02:26] [#]} 8. Ne3 $146 {[%emt 0:14:08] White is better.} ({Predecessor:} 8. Na5 Qc7 9. Be2 g6 10. O-O Bg7 11. Be3 Rd8 12. Rc1 O-O 13. f3 Ne8 14. Qd2 {0-1 (39) Karpik,T (2285)-Hanasz,W (2260) Porabka 1986}) 8... g6 {[%emt 0:04:37]} 9. Be2 {[%emt 0:00:15]} Bg7 {[%emt 0:01:33]} 10. O-O {[%emt 0:21:54]} O-O {[%emt 0:01:47]} 11. Bf3 {[%emt 0:12:57]} Rc8 {[%emt 0:10:09]} 12. Re1 {[%emt 0:14:21]} Qc7 {[%emt 0:05:39]} 13. b3 {[%emt 0:02:02]} Rfd8 {[%emt 0:00:38]} 14. Bb2 {[%emt 0:03:35]} Qd7 {[%emt 0:04:06]} (14... Nfd7 $11 {keeps the balance.}) 15. Qe2 {[%emt 0:09:06]} h5 {[%emt 0:01:30]} (15... Qxd4 $2 16. Ncd5 $1 {[%mdl 512]} Qc5 17. b4 $18) 16. h3 {[%emt 0:07:22]} Ne8 {[%emt 0:00:18]} (16... Qxd4 $2 17. Ncd5 $1 {[%mdl 512]} Qc5 18. b4 $18) 17. Rad1 {[%emt 0:03:53]} Qc7 {[%emt 0:01:31]} (17... Bxd4 $2 18. Na4 c5 19. Nxc5 $1 {[%mdl 512]} Bxc5 20. Rxd7 Rxd7 21. Rd1 $18) 18. Nc2 {[%emt 0:02:21]} Rd7 {[%emt 0:02:23]} (18... a5 $14) 19. Rd3 {[%emt 0:00:00]} Rcd8 {[%emt 0:02:45]} 20. Red1 {[%emt 0:01:03]} a5 {[%emt 0:01:13][%cal Oa5a4]} 21. Qe1 {[%emt 0:02:46]} ({White should play} 21. g4 $16) 21... a4 {[%emt 0:24:31]} 22. Ne2 {[%emt 0:00:00][%cal Bc3e2,Be2f4,Bf4e6][%mdl 32]} axb3 {[%emt 0:00:55]} 23. axb3 {[%emt 0:00:00]} Nd6 $2 {[%emt 0:03:27] Black cannot hold the game after this.} ({Better is} 23... f6 $14) 24. Nf4 $18 {[%emt 0:00:00]} Nb5 {[%emt 0:00:32]} (24... Bc4 $142) 25. Nxe6 {[%emt 0:00:00]} fxe6 {[%emt 0:00:01]} 26. Qe3 {[%emt 0:00:00] Strongly threatening e5.} Kh7 $2 {[%emt 0:01:37]} (26... e5 27. Be2 Nxd4) 27. e5 {[%emt 0:00:00]} Rf8 {[%emt 0:02:20]} 28. Be4 {[%emt 0:00:00]} Bh6 {[%emt 0:04:01] [#]} 29. Bxg6+ $1 {[%emt 0:00:00][%mdl 512]} Kxg6 {[%emt 0:00:55]} 30. Qe4+ {[%emt 0:00:00]} Kf7 {[%emt 0:07:14]} 31. Rf3+ {[%emt 0:00:00]} Kg8 {[%emt 0:00:36]} 32. Qg6+ {[%emt 0:00:00]} Bg7 {[%emt 0:00:10]} 33. Rxf8+ {[%emt 0:00:00]} Kxf8 {[%emt 0:00:20]} 34. Rd3 {[%emt 0:00:00] White threatens Rf3+ and mate.} Bxe5 {[%emt 0:01:19]} 35. Bc1 {[%emt 0:00:00]} ({Weaker is} 35. dxe5 Rxd3 36. Qxd3 Qd7 37. Qf3+ Kg7 $16) (35. Rf3+ $142 Bf4 36. d5 Nc3 37. Bxc3 e5 {[#]} 38. Rxf4+ $1 {[%mdl 512]} exf4 39. Qg7+ Ke8 40. Qg8#) 35... Bf4 {[%emt 0:05:29] [#]} 36. Rg3 $1 {[%emt 0:00:00][%mdl 512] Weighted Error Value: White=0.09 (flawless) /Black=0.74} 1-0

[Event "34th Pula Open 2022"]
[Site "Pula"]
[Date "2022.06.20"]
[Round "4.7"]
[White "Seres, Bela"]
[Black "Maier, Christian"]
[Result "1/2-1/2"]
[ECO "C87"]
[WhiteElo "2164"]
[BlackElo "2299"]
[Annotator "TA"]
[PlyCount "55"]
[EventDate "2022.06.18"]
[EventType "swiss"]
[EventCountry "CRO"]
[SourceTitle "playchess.com"]
[Source "ChessBase"]
[SourceQuality "1"]
[TimeControl "5400+30"]

{[%evp 14,55,34,36,56,0,0,0,0,0,33,46,52,54,48,46,46,50,53,44,43,42,35,30,29,40,44,41,63,42,69,71,62,40,63,66,65,65,67,22,54,6,10,5]} 1. e4 {[%emt 0:00:30]} e5 {[%emt 0:02:02]} 2. Nf3 {[%emt 0:00:00]} Nc6 {[%emt 0:00:19]} 3. Bb5 {[%emt 0:00:00]} a6 {[%emt 0:00:17]} 4. Ba4 {[%emt 0:00:00]} Nf6 {[%emt 0:00:11]} 5. O-O {[%emt 0:00:00]} d6 {[%emt 0:02:54]} 6. Re1 {[%emt 0:01:43]} Be7 {[%emt 0:00:07]} 7. c3 {[%emt 0:00:35]} O-O {[%emt 0:00:08]} 8. h3 {[%emt 0:00:29] 8.d4 deserves study.} Re8 {[%emt 0:02:45] C87: Closed Ruy Lopez: Steinitz-type lines after 6 Re1 d6.} 9. Bxc6 {[%emt 0:02:01]} (9. d4 $14) 9... bxc6 $11 {[%emt 0:00:06]} 10. d4 {[%emt 0:00:10]} exd4 {[%emt 0:05:08]} 11. cxd4 {[%emt 0:01:14] [#]} Nd7 $146 {[%emt 0:00:35]} ({Predecessor:} 11... d5 12. e5 Ne4 13. a3 c5 14. Nc3 Bf5 15. Nxe4 Bxe4 16. dxc5 Bxc5 17. Be3 Bxe3 18. Rxe3 {½-½ (66) Salonika,S (1342)-Salimova,N Porto Carras 2010}) 12. Be3 {[%emt 0:03:31]} Rb8 {[%emt 0:00:35]} 13. Qc2 {[%emt 0:00:36]} Bb7 {[%emt 0:04:41]} 14. Nc3 {[%emt 0:04:00]} c5 {[%emt 0:16:10]} 15. dxc5 {[%emt 0:01:43]} Nxc5 {[%emt 0:00:27]} 16. Bxc5 {[%emt 0:01:41]} dxc5 {[%emt 0:00:05]} 17. Rad1 {[%emt 0:03:13]} Qc8 {[%emt 0:00:06]} 18. Nd5 {[%emt 0:05:30]} Bxd5 {[%emt 0:02:33]} 19. Rxd5 {[%emt 0:05:13]} Qe6 {[%emt 0:00:15]} 20. b3 {[%emt 0:02:06]} Bd6 {[%emt 0:01:27]} 21. Qd3 {[%emt 0:08:10]} Rbd8 {[%emt 0:15:16]} 22. e5 {[%emt 0:05:00]} Be7 {[%emt 0:00:05]} 23. Rd1 {[%emt 0:00:20][%cal Rd5d8]} h6 {[%emt 0:00:10] [#] Hoping for ...Rxd5.} 24. Qe4 {[%emt 0:05:57]} Rxd5 {[%emt 0:01:41]} 25. Rxd5 {[%emt 0:03:16]} Bf8 {[%emt 0:00:29]} 26. Qd3 {[%emt 0:01:18] White is more active.} g6 {[%emt 0:10:51]} 27. g4 {[%emt 0:10:06]} (27. Qe4 $14 {is superior.}) 27... Rb8 {[%emt 0:01:45]} 28. Kg2 {[%emt 0:06:36] Weighted Error Value: White=0.11 (very precise) /Black=0.09 (flawless)} 1/2-1/2

[Event "34th Pula Open 2022"]
[Site "Pula"]
[Date "2022.06.20"]
[Round "4.8"]
[White "Balinski, Damian"]
[Black "Novosel, Lovro"]
[Result "1/2-1/2"]
[ECO "D38"]
[WhiteElo "2184"]
[BlackElo "2279"]
[Annotator "TA"]
[PlyCount "51"]
[EventDate "2022.06.18"]
[EventType "swiss"]
[EventCountry "CRO"]
[SourceTitle "playchess.com"]
[Source "ChessBase"]
[SourceQuality "1"]
[TimeControl "5400+30"]

{[%evp 20,51,0,0,10,1,14,15,25,19,27,28,37,33,43,37,40,22,22,22,22,35,75,57,70,45,79,73,77,79,81,89,90,56]} 1. d4 {[%emt 0:01:15]} Nf6 {[%emt 0:00:22]} 2. c4 {[%emt 0:00:11]} e6 {[%emt 0:00:41]} 3. Nc3 {[%emt 0:00:02]} d5 {[%emt 0:00:23]} 4. Bg5 {[%emt 0:00:04]} Bb4 {[%emt 0:00:51]} 5. Rc1 {[%emt 0:00:08]} h6 {[%emt 0:01:48]} 6. Bxf6 {[%emt 0:00:16]} Qxf6 {[%emt 0:00:24]} 7. cxd5 {[%emt 0:00:04]} exd5 {[%emt 0:00:28]} 8. a3 {[%emt 0:00:10]} Bxc3+ {[%emt 0:02:33]} 9. Rxc3 {[%emt 0:00:02]} c6 {[%emt 0:00:28]} 10. Nf3 {[%emt 0:00:18]} O-O {[%emt 0:00:15]} 11. e3 {[%emt 0:00:09]} Re8 {[%emt 0:01:52] D38: Queen's Gambit Declined: Ragozin Defence (4 Nf3 Bb4).} 12. Be2 {[%emt 0:02:05]} Nd7 {[%emt 0:07:57]} 13. O-O {[%emt 0:00:12] [#]} a6 $146 {[%emt 0:04:39] The position is equal.} ({Predecessor:} 13... b6 14. b4 a5 15. Qc2 Bb7 {½-½ (15) Horvath,C (2539)-Horvath,J (2548) Balatonlelle 2002}) 14. Qc2 {[%emt 0:07:24]} Qd6 {[%emt 0:07:42]} 15. Bd3 {[%emt 0:03:50]} Nf6 {[%emt 0:05:41]} 16. Ne5 {[%emt 0:00:41]} Be6 {[%emt 0:08:20]} 17. b4 {[%emt 0:04:53]} Rac8 {[%emt 0:15:44]} 18. Rb1 {[%emt 0:01:00]} Ne4 {[%emt 0:01:23]} 19. Bxe4 {[%emt 0:05:58]} dxe4 {[%emt 0:00:57]} 20. a4 {[%emt 0:03:48]} ({But not} 20. Qxe4 f6 21. Ng6 Qd7 $15) 20... f5 {[%emt 0:04:58]} 21. Nc4 {[%emt 0:08:51]} Qd8 {[%emt 0:03:49][%cal Of5f4]} 22. Rc1 {[%emt 0:07:31]} Kh7 {[%emt 0:09:27]} 23. Qb1 {[%emt 0:05:04] White is better.} Rf8 {[%emt 0:02:07]} 24. Ne5 {[%emt 0:06:09]} Qd5 {[%emt 0:06:19]} 25. Rc5 {[%emt 0:02:32]} Qd6 {[%emt 0:02:50]} 26. Nc4 {[%emt 0:15:01] Weighted Error Value: White=0.06 (flawless) /Black=0.10 (very precise)} 1/2-1/2